[Event "Titled Tuesday Blitz July 05 Late 2022"]
[White "Aggelis, Nikolaos"]
[Black "Silva Lucena, Cristian"]
[WhiteFideId "4213220"]
[BlackFideId "2232588"]
[WhiteElo "2154"]
[BlackElo "2223"]
[Result "1/2-1/2"]
[Round "07"]
[TimeControl "180+1"]
[Date "2022.07.06"]
[WhiteClock "0:00:04"]
[BlackClock "0:00:06"]

1. Nf3 {[%clk 0:03:00]}  d5 {[%clk 0:02:51]} 2. g3 {[%clk 0:02:59]}  Bg4 {[%clk 0:02:38]} 3. Bg2 {[%clk 0:02:57]}  Nd7 {[%clk 0:02:27]} 4. O-O {[%clk 0:02:47]}  e5 {[%clk 0:02:21]} 5. d3 {[%clk 0:02:47]}  h5 {[%clk 0:02:20]} 6. h3 {[%clk 0:02:41]}  Bxf3 {[%clk 0:02:18]} 7. exf3 {[%clk 0:02:38]}  h4 {[%clk 0:02:17]} 8. Re1 {[%clk 0:02:34]}  hxg3 {[%clk 0:02:14]} 9. fxg3 {[%clk 0:02:23]}  Bd6 {[%clk 0:02:13]} 10. f4 {[%clk 0:02:21]}  Ne7 {[%clk 0:02:14]} 11. d4 {[%clk 0:02:15]}  e4 {[%clk 0:02:10]} 12. c4 {[%clk 0:02:13]}  c6 {[%clk 0:02:10]} 13. Nc3 {[%clk 0:02:13]}  g5 {[%clk 0:02:01]} 14. cxd5 {[%clk 0:02:09]}  cxd5 {[%clk 0:02:01]} 15. Qb3 {[%clk 0:02:08]}  gxf4 {[%clk 0:01:49]} 16. Nxd5 {[%clk 0:02:03]}  f3 {[%clk 0:01:49]} 17. Bf1 {[%clk 0:01:58]}  Nxd5 {[%clk 0:01:20]} 18. Qxd5 {[%clk 0:01:55]}  Nf6 {[%clk 0:01:21]} 19. Rxe4+ {[%clk 0:01:26]}  Nxe4 {[%clk 0:01:18]} 20. Qxe4+ {[%clk 0:01:27]}  Qe7 {[%clk 0:01:15]} 21. Qxf3 {[%clk 0:01:24]}  O-O-O {[%clk 0:01:13]} 22. Bf4 {[%clk 0:01:09]}  Bxf4 {[%clk 0:01:10]} 23. Qxf4 {[%clk 0:01:06]}  Qd6 {[%clk 0:01:09]} 24. Rc1+ {[%clk 0:00:56]}  Kb8 {[%clk 0:01:07]} 25. Qxd6+ {[%clk 0:00:32]}  Rxd6 {[%clk 0:01:08]} 26. Rd1 {[%clk 0:00:30]}  Rhd8 {[%clk 0:01:06]} 27. Bc4 {[%clk 0:00:22]}  f6 {[%clk 0:01:00]} 28. d5 {[%clk 0:00:22]}  b5 {[%clk 0:00:59]} 29. Bb3 {[%clk 0:00:21]}  a5 {[%clk 0:00:52]} 30. a3 {[%clk 0:00:20]}  a4 {[%clk 0:00:51]} 31. Ba2 {[%clk 0:00:20]}  Rc8 {[%clk 0:00:51]} 32. Rd2 {[%clk 0:00:20]}  Rc1+ {[%clk 0:00:50]} 33. Kf2 {[%clk 0:00:21]}  Ra1 {[%clk 0:00:47]} 34. b4 {[%clk 0:00:17]}  axb3 {[%clk 0:00:46]} 35. Bxb3 {[%clk 0:00:18]}  Rxa3 {[%clk 0:00:47]} 36. Rd3 {[%clk 0:00:17]}  Kc7 {[%clk 0:00:44]} 37. Ke3 {[%clk 0:00:17]}  Kb6 {[%clk 0:00:44]} 38. Kd4 {[%clk 0:00:18]}  Ra1 {[%clk 0:00:40]} 39. h4 {[%clk 0:00:17]}  Ka5 {[%clk 0:00:36]} 40. Bd1 {[%clk 0:00:16]}  Kb6 {[%clk 0:00:31]} 41. h5 {[%clk 0:00:17]}  Ra2 {[%clk 0:00:27]} 42. g4 {[%clk 0:00:14]}  Rh2 {[%clk 0:00:27]} 43. Ke4 {[%clk 0:00:13]}  b4 {[%clk 0:00:24]} 44. Kf5 {[%clk 0:00:13]}  Kc5 {[%clk 0:00:24]} 45. Kg6 {[%clk 0:00:13]}  Kc4 {[%clk 0:00:22]} 46. Rf3 {[%clk 0:00:08]}  Kc5 {[%clk 0:00:16]} 47. Bb3 {[%clk 0:00:08]}  Rb2 {[%clk 0:00:15]} 48. h6 {[%clk 0:00:08]}  Rh2 {[%clk 0:00:14]} 49. h7 {[%clk 0:00:08]}  Rd7 {[%clk 0:00:13]} 50. Rxf6 {[%clk 0:00:06]}  Rhxh7 {[%clk 0:00:13]} 51. g5 {[%clk 0:00:06]}  Rhg7+ {[%clk 0:00:13]} 52. Kf5 {[%clk 0:00:06]}  Kd4 {[%clk 0:00:13]} 53. g6 {[%clk 0:00:05]}  Kc3 {[%clk 0:00:13]} 54. Ba4 {[%clk 0:00:05]}  b3 {[%clk 0:00:13]} 55. Bxd7 {[%clk 0:00:04]}  b2 {[%clk 0:00:13]} 56. Rb6 {[%clk 0:00:03]}  Rxd7 {[%clk 0:00:14]} 57. Ke6 {[%clk 0:00:04]}  Rg7 {[%clk 0:00:14]} 58. Kf6 {[%clk 0:00:04]}  Rd7 {[%clk 0:00:14]} 59. d6 {[%clk 0:00:04]}  Rxd6+ {[%clk 0:00:13]} 60. Rxd6 {[%clk 0:00:04]}  b1=Q {[%clk 0:00:14]} 61. Re6 {[%clk 0:00:04]}  Qf1+ {[%clk 0:00:14]} 62. Kg7 {[%clk 0:00:05]}  Qf5 {[%clk 0:00:14]} 63. Rf6 {[%clk 0:00:06]}  Qe5 {[%clk 0:00:12]} 64. Kf7 {[%clk 0:00:05]}  Qc7+ {[%clk 0:00:11]} 65. Kg8 {[%clk 0:00:05]}  Qd8+ {[%clk 0:00:11]} 66. Rf8 {[%clk 0:00:05]}  Qd5+ {[%clk 0:00:11]} 67. Kh8 {[%clk 0:00:05]}  Qh5+ {[%clk 0:00:11]} 68. Kg7 {[%clk 0:00:05]}  Kd4 {[%clk 0:00:11]} 69. Rd8+ {[%clk 0:00:03]}  Ke5 {[%clk 0:00:11]} 70. Ra8 {[%clk 0:00:02]}  Ke6 {[%clk 0:00:10]} 71. Ra6+ {[%clk 0:00:02]}  Kd7 {[%clk 0:00:10]} 72. Ra7+ {[%clk 0:00:02]}  Kc8 {[%clk 0:00:11]} 73. Rf7 {[%clk 0:00:03]}  Kd8 {[%clk 0:00:10]} 74. Rf8+ {[%clk 0:00:03]}  Ke7 {[%clk 0:00:10]} 75. Rf7+ {[%clk 0:00:04]}  Ke6 {[%clk 0:00:10]} 76. Rf6+ {[%clk 0:00:05]}  Ke5 {[%clk 0:00:10]} 77. Rf7 {[%clk 0:00:06]}  Qg5 {[%clk 0:00:10]} 78. Rf8 {[%clk 0:00:04]}  Qe7+ {[%clk 0:00:09]} 79. Rf7 {[%clk 0:00:05]}  Qe8 {[%clk 0:00:09]} 80. Rf8 {[%clk 0:00:05]}  Qd8 {[%clk 0:00:09]} 81. Rf7 {[%clk 0:00:06]}  Ke6 {[%clk 0:00:08]} 82. Rf8 {[%clk 0:00:06]}  Qd4+ {[%clk 0:00:09]} 83. Kg8 {[%clk 0:00:05]}  Qg4 {[%clk 0:00:07]} 84. g7 {[%clk 0:00:05]}  Qg6 {[%clk 0:00:06]} 85. Rb8 {[%clk 0:00:04]}  Qf7+ {[%clk 0:00:06]} 86. Kh8 {[%clk 0:00:03]}  Qh5+ {[%clk 0:00:06]} 87. Kg8 {[%clk 0:00:04]}  Qf7+ {[%clk 0:00:05]} 88. Kh8 {[%clk 0:00:04]}  Qh5+ {[%clk 0:00:05]} 89. Kg8 {[%clk 0:00:04]}  Qf7+ {[%clk 0:00:06]} 1/2-1/2


[Site "https://www.chess.com"]

[Event "Titled Tuesday Blitz July 05 Late 2022"]
[White "Ambartsumova, Karina"]
[Black "Livaic, Leon"]
[WhiteFideId "4166299"]
[BlackFideId "14531534"]
[WhiteElo "2262"]
[BlackElo "2540"]
[Result "1/2-1/2"]
[Round "07"]
[TimeControl "180+1"]
[Date "2022.07.05"]
[WhiteClock "0:00:03"]
[BlackClock "0:00:33"]

1. Nf3 {[%clk 0:03:00]}  d5 {[%clk 0:02:55]} 2. g3 {[%clk 0:03:01]}  c6 {[%clk 0:02:54]} 3. d4 {[%clk 0:02:59]}  Bf5 {[%clk 0:02:54]} 4. c4 {[%clk 0:02:59]}  e6 {[%clk 0:02:54]} 5. Qb3 {[%clk 0:02:55]}  Qb6 {[%clk 0:02:53]} 6. Nc3 {[%clk 0:02:43]}  Nd7 {[%clk 0:02:52]} 7. Bf4 {[%clk 0:02:35]}  Ngf6 {[%clk 0:02:52]} 8. c5 {[%clk 0:02:31]}  Qxb3 {[%clk 0:02:51]} 9. axb3 {[%clk 0:02:32]}  a6 {[%clk 0:02:51]} 10. b4 {[%clk 0:02:21]}  Rc8 {[%clk 0:02:51]} 11. Nd2 {[%clk 0:02:16]}  h6 {[%clk 0:02:51]} 12. h4 {[%clk 0:02:14]}  g6 {[%clk 0:02:49]} 13. Nb3 {[%clk 0:02:13]}  Nh5 {[%clk 0:02:20]} 14. Be3 {[%clk 0:02:04]}  e5 {[%clk 0:02:19]} 15. Na5 {[%clk 0:01:59]}  Rc7 {[%clk 0:02:18]} 16. Rg1 {[%clk 0:01:42]}  Bg7 {[%clk 0:02:17]} 17. O-O-O {[%clk 0:01:22]}  exd4 {[%clk 0:02:14]} 18. Bxd4 {[%clk 0:01:22]}  Bxd4 {[%clk 0:02:14]} 19. Rxd4 {[%clk 0:01:23]}  Nhf6 {[%clk 0:02:14]} 20. g4 {[%clk 0:01:08]}  Be6 {[%clk 0:02:13]} 21. f3 {[%clk 0:00:56]}  g5 {[%clk 0:02:11]} 22. Rh1 {[%clk 0:00:52]}  Rg8 {[%clk 0:02:10]} 23. e3 {[%clk 0:00:47]}  Ne5 {[%clk 0:02:10]} 24. Be2 {[%clk 0:00:44]}  Kd7 {[%clk 0:02:09]} 25. hxg5 {[%clk 0:00:43]}  hxg5 {[%clk 0:02:09]} 26. Rh6 {[%clk 0:00:41]}  Ke7 {[%clk 0:02:04]} 27. Rd1 {[%clk 0:00:33]}  Bc8 {[%clk 0:02:03]} 28. Na4 {[%clk 0:00:24]}  Ng6 {[%clk 0:01:52]} 29. Nb6 {[%clk 0:00:20]}  Be6 {[%clk 0:01:52]} 30. Rdh1 {[%clk 0:00:08]}  Kf8 {[%clk 0:01:52]} 31. R6h2 {[%clk 0:00:07]}  Re7 {[%clk 0:01:52]} 32. Kd2 {[%clk 0:00:07]}  Kg7 {[%clk 0:01:52]} 33. Bd3 {[%clk 0:00:07]}  Ne5 {[%clk 0:01:50]} 34. Rf2 {[%clk 0:00:06]}  Rd8 {[%clk 0:01:44]} 35. Nb3 {[%clk 0:00:05]}  Ned7 {[%clk 0:01:40]} 36. Nxd7 {[%clk 0:00:04]}  Bxd7 {[%clk 0:01:40]} 37. Nd4 {[%clk 0:00:05]}  Rde8 {[%clk 0:01:40]} 38. Re1 {[%clk 0:00:05]}  Rh8 {[%clk 0:01:39]} 39. Bf5 {[%clk 0:00:05]}  Rh3 {[%clk 0:01:37]} 40. Bxd7 {[%clk 0:00:05]}  Rxd7 {[%clk 0:01:38]} 41. Nf5+ {[%clk 0:00:06]}  Kg6 {[%clk 0:01:38]} 42. Rg1 {[%clk 0:00:05]}  Rd8 {[%clk 0:01:33]} 43. Rg3 {[%clk 0:00:05]}  Rxg3 {[%clk 0:01:32]} 44. Nxg3 {[%clk 0:00:05]}  Rh8 {[%clk 0:01:33]} 45. Nf5 {[%clk 0:00:06]}  Nd7 {[%clk 0:01:21]} 46. Nd6 {[%clk 0:00:06]}  b6 {[%clk 0:01:21]} 47. cxb6 {[%clk 0:00:05]}  Nxb6 {[%clk 0:01:21]} 48. Kc3 {[%clk 0:00:05]}  Rd8 {[%clk 0:01:19]} 49. Nf5 {[%clk 0:00:05]}  Rh8 {[%clk 0:01:12]} 50. Kd4 {[%clk 0:00:06]}  Rh1 {[%clk 0:01:04]} 51. Kc5 {[%clk 0:00:06]}  Nc4 {[%clk 0:00:58]} 52. Kxc6 {[%clk 0:00:06]}  Rd1 {[%clk 0:00:45]} 53. Kb7 {[%clk 0:00:05]}  Ra1 {[%clk 0:00:42]} 54. Ne7+ {[%clk 0:00:06]}  Kg7 {[%clk 0:00:41]} 55. Nxd5 {[%clk 0:00:06]}  Rd1 {[%clk 0:00:38]} 56. e4 {[%clk 0:00:06]}  Ra1 {[%clk 0:00:36]} 57. Kc6 {[%clk 0:00:05]}  Ne5+ {[%clk 0:00:36]} 58. Kb7 {[%clk 0:00:05]}  Ra2 {[%clk 0:00:34]} 59. Kb6 {[%clk 0:00:05]}  Nd3 {[%clk 0:00:33]} 60. Rd2 {[%clk 0:00:04]}  Ne5 {[%clk 0:00:34]} 61. Rf2 {[%clk 0:00:03]}  Nd3 {[%clk 0:00:34]} 62. Rd2 {[%clk 0:00:03]}  Ne5 {[%clk 0:00:33]} 63. Rf2 {[%clk 0:00:03]} 1/2-1/2


[Site "https://www.chess.com"]

[Event "Titled Tuesday Blitz July 05 Late 2022"]
[White "Andreikin, Dmitry"]
[Black "Sjugirov, Sanan"]
[WhiteFideId "4158814"]
[BlackFideId "4189302"]
[WhiteElo "2736"]
[BlackElo "2609"]
[Result "1-0"]
[Round "07"]
[TimeControl "180+1"]
[Date "2022.07.05"]
[WhiteClock "0:01:26"]
[BlackClock "0:00:02"]

1. d4 {[%clk 0:03:00]}  Nf6 {[%clk 0:02:59]} 2. c4 {[%clk 0:03:01]}  e6 {[%clk 0:03:00]} 3. Nc3 {[%clk 0:03:01]}  Bb4 {[%clk 0:03:00]} 4. Nf3 {[%clk 0:03:01]}  b6 {[%clk 0:02:58]} 5. Qc2 {[%clk 0:02:59]}  Bb7 {[%clk 0:02:54]} 6. a3 {[%clk 0:02:59]}  Bxc3+ {[%clk 0:02:49]} 7. Qxc3 {[%clk 0:03:00]}  O-O {[%clk 0:02:48]} 8. b4 {[%clk 0:03:00]}  a5 {[%clk 0:02:43]} 9. Bb2 {[%clk 0:02:55]}  d6 {[%clk 0:02:38]} 10. e3 {[%clk 0:02:54]}  Ne4 {[%clk 0:02:33]} 11. Qc2 {[%clk 0:02:51]}  f5 {[%clk 0:02:27]} 12. d5 {[%clk 0:02:47]}  axb4 {[%clk 0:02:13]} 13. axb4 {[%clk 0:02:45]}  Rxa1+ {[%clk 0:02:13]} 14. Bxa1 {[%clk 0:02:46]}  exd5 {[%clk 0:02:03]} 15. cxd5 {[%clk 0:02:46]}  Bxd5 {[%clk 0:02:01]} 16. Bc4 {[%clk 0:02:40]}  Bxc4 {[%clk 0:01:52]} 17. Qxc4+ {[%clk 0:02:41]}  d5 {[%clk 0:01:53]} 18. Qd4 {[%clk 0:02:41]}  Nf6 {[%clk 0:01:53]} 19. O-O {[%clk 0:02:40]}  Nc6 {[%clk 0:01:51]} 20. Qd2 {[%clk 0:02:37]}  Qd6 {[%clk 0:01:50]} 21. Rc1 {[%clk 0:02:31]}  Ne4 {[%clk 0:00:33]} 22. Qb2 {[%clk 0:02:27]}  d4 {[%clk 0:00:33]} 23. b5 {[%clk 0:02:20]}  Ne5 {[%clk 0:00:23]} 24. Nxd4 {[%clk 0:02:20]}  Ng4 {[%clk 0:00:14]} 25. Nf3 {[%clk 0:01:56]}  Rf7 {[%clk 0:00:14]} 26. Qa2 {[%clk 0:01:44]}  h6 {[%clk 0:00:13]} 27. h3 {[%clk 0:01:42]}  Nexf2 {[%clk 0:00:03]} 28. hxg4 {[%clk 0:01:41]}  Nxg4 {[%clk 0:00:04]} 29. Bd4 {[%clk 0:01:39]}  Qe7 {[%clk 0:00:02]} 30. Qd5 {[%clk 0:01:33]}  Kh7 {[%clk 0:00:02]} 31. Ne5 {[%clk 0:01:31]}  Nxe5 {[%clk 0:00:02]} 32. Bxe5 {[%clk 0:01:31]}  Qg5 {[%clk 0:00:02]} 33. Bf4 {[%clk 0:01:27]}  Qg4 {[%clk 0:00:02]} 34. Qxf7 {[%clk 0:01:26]} 1-0


[Site "https://www.chess.com"]

[Event "Titled Tuesday Blitz July 05 Late 2022"]
[White "Averjanov, Alexey"]
[Black "Koc, Przemyslaw"]
[WhiteFideId "14109867"]
[BlackFideId "1109081"]
[WhiteElo "2690"]
[BlackElo "2134"]
[Result "1-0"]
[Round "07"]
[TimeControl "180+1"]
[Date "2022.07.06"]
[WhiteClock "0:00:48"]
[BlackClock "0:00:02"]

1. d4 {[%clk 0:03:00]}  f5 {[%clk 0:02:38]} 2. c4 {[%clk 0:03:01]}  Nf6 {[%clk 0:02:38]} 3. Nf3 {[%clk 0:03:00]}  g6 {[%clk 0:02:38]} 4. g3 {[%clk 0:03:00]}  Bg7 {[%clk 0:02:39]} 5. Bg2 {[%clk 0:03:01]}  O-O {[%clk 0:02:40]} 6. O-O {[%clk 0:03:01]}  d6 {[%clk 0:02:40]} 7. b3 {[%clk 0:03:02]}  e5 {[%clk 0:02:40]} 8. dxe5 {[%clk 0:02:59]}  Ng4 {[%clk 0:02:40]} 9. Bb2 {[%clk 0:02:58]}  Nxe5 {[%clk 0:02:40]} 10. Nc3 {[%clk 0:02:57]}  Nbc6 {[%clk 0:02:32]} 11. Qd2 {[%clk 0:02:56]}  Be6 {[%clk 0:02:29]} 12. Ng5 {[%clk 0:02:55]}  Bh6 {[%clk 0:02:20]} 13. Nxe6 {[%clk 0:02:50]}  Bxd2 {[%clk 0:02:19]} 14. Nxd8 {[%clk 0:02:50]}  Raxd8 {[%clk 0:02:18]} 15. Nd5 {[%clk 0:02:51]}  Rd7 {[%clk 0:02:14]} 16. f4 {[%clk 0:02:46]}  Ng4 {[%clk 0:02:13]} 17. h3 {[%clk 0:02:41]}  Ne3 {[%clk 0:02:12]} 18. Nf6+ {[%clk 0:02:36]}  Rxf6 {[%clk 0:02:10]} 19. Bxf6 {[%clk 0:02:37]}  Nxf1 {[%clk 0:02:10]} 20. Bd5+ {[%clk 0:02:37]}  Kf8 {[%clk 0:02:08]} 21. Rxf1 {[%clk 0:02:36]}  Be3+ {[%clk 0:02:07]} 22. Kg2 {[%clk 0:02:36]}  Nb4 {[%clk 0:01:15]} 23. Bxb7 {[%clk 0:02:32]}  c6 {[%clk 0:01:15]} 24. Bc8 {[%clk 0:02:24]}  Rc7 {[%clk 0:01:15]} 25. Be6 {[%clk 0:02:23]}  Nxa2 {[%clk 0:01:15]} 26. Kf3 {[%clk 0:02:15]}  Bc5 {[%clk 0:01:15]} 27. g4 {[%clk 0:02:08]}  fxg4+ {[%clk 0:01:12]} 28. hxg4 {[%clk 0:02:09]}  Nb4 {[%clk 0:01:12]} 29. f5 {[%clk 0:02:05]}  Nc2 {[%clk 0:01:01]} 30. Ke4 {[%clk 0:02:03]}  Ne3 {[%clk 0:00:53]} 31. Rf4 {[%clk 0:02:02]}  gxf5+ {[%clk 0:00:47]} 32. gxf5 {[%clk 0:02:01]}  d5+ {[%clk 0:00:23]} 33. cxd5 {[%clk 0:01:57]}  cxd5+ {[%clk 0:00:23]} 34. Ke5 {[%clk 0:01:57]}  d4 {[%clk 0:00:21]} 35. Ke4 {[%clk 0:01:43]}  a5 {[%clk 0:00:19]} 36. Bxd4 {[%clk 0:01:32]}  Bxd4 {[%clk 0:00:19]} 37. Kxd4 {[%clk 0:01:33]}  Nc2+ {[%clk 0:00:19]} 38. Ke5 {[%clk 0:01:33]}  Nb4 {[%clk 0:00:18]} 39. Rg4 {[%clk 0:01:31]}  Rg7 {[%clk 0:00:18]} 40. Rc4 {[%clk 0:01:28]}  Re7 {[%clk 0:00:16]} 41. f6 {[%clk 0:01:24]}  Re8 {[%clk 0:00:16]} 42. Rc7 {[%clk 0:01:23]}  h5 {[%clk 0:00:09]} 43. Rh7 {[%clk 0:01:23]}  Nc6+ {[%clk 0:00:09]} 44. Kd6 {[%clk 0:01:23]}  Rxe6+ {[%clk 0:00:06]} 45. Kxe6 {[%clk 0:01:24]}  Nd4+ {[%clk 0:00:07]} 46. Ke5 {[%clk 0:01:19]}  Nxb3 {[%clk 0:00:08]} 47. Rxh5 {[%clk 0:01:17]}  a4 {[%clk 0:00:08]} 48. Ke6 {[%clk 0:01:05]}  Nd4+ {[%clk 0:00:08]} 49. Kd5 {[%clk 0:01:05]}  Nxe2 {[%clk 0:00:06]} 50. Rh7 {[%clk 0:00:53]}  a3 {[%clk 0:00:06]} 51. Ra7 {[%clk 0:00:53]}  Nf4+ {[%clk 0:00:04]} 52. Ke5 {[%clk 0:00:52]}  Nd3+ {[%clk 0:00:04]} 53. Kf5 {[%clk 0:00:51]}  Nc5 {[%clk 0:00:03]} 54. Rxa3 {[%clk 0:00:49]}  Nd7 {[%clk 0:00:02]} 55. Ra8+ {[%clk 0:00:48]}  Kf7 {[%clk 0:00:03]} 56. Ra7 {[%clk 0:00:48]}  Ke8 {[%clk 0:00:03]} 57. f7+ {[%clk 0:00:49]}  Ke7 {[%clk 0:00:03]} 58. Rxd7+ {[%clk 0:00:48]}  Kxd7 {[%clk 0:00:02]} 59. f8=Q {[%clk 0:00:48]} 1-0


[Site "https://www.chess.com"]

[Event "Titled Tuesday Blitz July 05 Late 2022"]
[White "Bluebaum, Matthias"]
[Black "Domingo Nunez, Alejandro"]
[WhiteFideId "24651516"]
[BlackFideId "22245561"]
[WhiteElo "2556"]
[BlackElo "2222"]
[Result "1-0"]
[Round "07"]
[TimeControl "180+1"]
[Date "2022.07.05"]
[WhiteClock "0:01:05"]
[BlackClock "0:00:46"]

1. d4 {[%clk 0:03:00]}  Nf6 {[%clk 0:02:59]} 2. c4 {[%clk 0:02:59]}  g6 {[%clk 0:02:59]} 3. Nc3 {[%clk 0:02:59]}  Bg7 {[%clk 0:03:00]} 4. e4 {[%clk 0:02:59]}  d6 {[%clk 0:03:01]} 5. Nf3 {[%clk 0:03:00]}  O-O {[%clk 0:03:00]} 6. Be2 {[%clk 0:03:01]}  e5 {[%clk 0:03:01]} 7. Be3 {[%clk 0:03:02]}  Nc6 {[%clk 0:02:51]} 8. d5 {[%clk 0:03:02]}  Ne7 {[%clk 0:02:52]} 9. Nd2 {[%clk 0:03:02]}  Kh8 {[%clk 0:02:53]} 10. c5 {[%clk 0:03:00]}  Ne8 {[%clk 0:02:53]} 11. Nc4 {[%clk 0:02:59]}  Ng8 {[%clk 0:02:54]} 12. Qd2 {[%clk 0:02:51]}  f5 {[%clk 0:02:53]} 13. f3 {[%clk 0:02:51]}  Bh6 {[%clk 0:02:52]} 14. Bxh6 {[%clk 0:02:44]}  Qh4+ {[%clk 0:02:52]} 15. g3 {[%clk 0:02:44]}  Qxh6 {[%clk 0:02:53]} 16. Qxh6 {[%clk 0:02:44]}  Nxh6 {[%clk 0:02:53]} 17. b4 {[%clk 0:02:33]}  Bd7 {[%clk 0:02:53]} 18. a4 {[%clk 0:02:27]}  fxe4 {[%clk 0:02:42]} 19. fxe4 {[%clk 0:02:26]}  a5 {[%clk 0:02:16]} 20. bxa5 {[%clk 0:02:15]}  dxc5 {[%clk 0:02:16]} 21. Nxe5 {[%clk 0:02:15]}  Bc8 {[%clk 0:02:12]} 22. a6 {[%clk 0:02:14]}  Nd6 {[%clk 0:02:02]} 23. axb7 {[%clk 0:02:12]}  Bxb7 {[%clk 0:02:02]} 24. Nd7 {[%clk 0:02:12]}  Rfe8 {[%clk 0:01:54]} 25. Nxc5 {[%clk 0:02:11]}  Bc8 {[%clk 0:01:54]} 26. O-O {[%clk 0:02:09]}  Bg4 {[%clk 0:01:48]} 27. Bxg4 {[%clk 0:02:03]}  Nxg4 {[%clk 0:01:48]} 28. Ne6 {[%clk 0:02:04]}  Re7 {[%clk 0:01:41]} 29. a5 {[%clk 0:01:51]}  c6 {[%clk 0:01:39]} 30. a6 {[%clk 0:01:37]}  cxd5 {[%clk 0:01:39]} 31. exd5 {[%clk 0:01:38]}  Ne3 {[%clk 0:01:39]} 32. Rfb1 {[%clk 0:01:37]}  Rea7 {[%clk 0:01:27]} 33. Rb6 {[%clk 0:01:30]}  Ndc4 {[%clk 0:01:13]} 34. Rc6 {[%clk 0:01:30]}  Ne5 {[%clk 0:01:12]} 35. Rc7 {[%clk 0:01:30]}  Nc2 {[%clk 0:01:07]} 36. Rxa7 {[%clk 0:01:18]}  Rxa7 {[%clk 0:01:08]} 37. Rb1 {[%clk 0:01:19]}  h5 {[%clk 0:01:01]} 38. Rb8+ {[%clk 0:01:17]}  Kh7 {[%clk 0:00:55]} 39. Rb7+ {[%clk 0:01:17]}  Rxb7 {[%clk 0:00:56]} 40. axb7 {[%clk 0:01:18]}  Nd7 {[%clk 0:00:56]} 41. Ne4 {[%clk 0:01:15]}  Nb8 {[%clk 0:00:50]} 42. Nf6+ {[%clk 0:01:07]}  Kh6 {[%clk 0:00:48]} 43. d6 {[%clk 0:01:04]}  Nb4 {[%clk 0:00:46]} 44. d7 {[%clk 0:01:05]}  N4c6 {[%clk 0:00:46]} 45. d8=Q {[%clk 0:01:05]}  Nxd8 {[%clk 0:00:46]} 46. Nxd8 {[%clk 0:01:06]}  Kg7 {[%clk 0:00:47]} 47. Nd7 {[%clk 0:01:06]}  Nxd7 {[%clk 0:00:46]} 48. Nc6 {[%clk 0:01:05]} 1-0


[Site "https://www.chess.com"]

[Event "Titled Tuesday Blitz July 05 Late 2022"]
[White "Dauner, Benedikt"]
[Black "Bilych, Olexiy"]
[WhiteFideId "16225899"]
[BlackFideId "14156504"]
[WhiteElo "2230"]
[BlackElo "2189"]
[Result "0-1"]
[Round "07"]
[TimeControl "180+1"]
[Date "2022.07.05"]
[WhiteClock "0:00:02"]
[BlackClock "0:00:20"]

1. b3 {[%clk 0:03:00]}  e5 {[%clk 0:02:57]} 2. Bb2 {[%clk 0:03:01]}  Nc6 {[%clk 0:02:57]} 3. e3 {[%clk 0:03:01]}  Nf6 {[%clk 0:02:56]} 4. Nf3 {[%clk 0:03:00]}  e4 {[%clk 0:02:54]} 5. Nd4 {[%clk 0:03:00]}  Nxd4 {[%clk 0:02:54]} 6. Bxd4 {[%clk 0:03:01]}  Be7 {[%clk 0:02:51]} 7. c4 {[%clk 0:03:00]}  O-O {[%clk 0:02:50]} 8. Nc3 {[%clk 0:02:54]}  b6 {[%clk 0:02:47]} 9. Qc2 {[%clk 0:02:50]}  Bb7 {[%clk 0:02:46]} 10. Rd1 {[%clk 0:02:48]}  Re8 {[%clk 0:02:28]} 11. Be2 {[%clk 0:02:44]}  c5 {[%clk 0:02:24]} 12. Be5 {[%clk 0:02:43]}  Bf8 {[%clk 0:01:58]} 13. Bg3 {[%clk 0:02:42]}  d5 {[%clk 0:01:51]} 14. cxd5 {[%clk 0:02:43]}  Nxd5 {[%clk 0:01:51]} 15. Nxd5 {[%clk 0:02:42]}  Qxd5 {[%clk 0:01:51]} 16. O-O {[%clk 0:02:41]}  Rad8 {[%clk 0:01:46]} 17. f3 {[%clk 0:02:32]}  exf3 {[%clk 0:01:24]} 18. Bxf3 {[%clk 0:02:33]}  Qd7 {[%clk 0:01:22]} 19. Bxb7 {[%clk 0:02:23]}  Qxb7 {[%clk 0:01:23]} 20. Qc4 {[%clk 0:02:24]}  Qd5 {[%clk 0:01:21]} 21. Qa4 {[%clk 0:02:14]}  Rd7 {[%clk 0:01:18]} 22. Qg4 {[%clk 0:01:57]}  h5 {[%clk 0:01:13]} 23. Qe2 {[%clk 0:01:55]}  g6 {[%clk 0:01:08]} 24. Rf2 {[%clk 0:01:51]}  Bg7 {[%clk 0:01:02]} 25. Rdf1 {[%clk 0:01:51]}  f5 {[%clk 0:00:51]} 26. Bf4 {[%clk 0:01:44]}  Bf6 {[%clk 0:00:47]} 27. h3 {[%clk 0:01:36]}  Kg7 {[%clk 0:00:47]} 28. Qe1 {[%clk 0:01:22]}  Bh4 {[%clk 0:00:40]} 29. g3 {[%clk 0:01:21]}  Bf6 {[%clk 0:00:41]} 30. h4 {[%clk 0:01:21]}  Red8 {[%clk 0:00:38]} 31. Qc1 {[%clk 0:01:18]}  Qe4 {[%clk 0:00:37]} 32. Re2 {[%clk 0:01:09]}  Rd3 {[%clk 0:00:36]} 33. Rff2 {[%clk 0:01:09]}  R8d7 {[%clk 0:00:36]} 34. Kh2 {[%clk 0:01:06]}  a5 {[%clk 0:00:35]} 35. Kg1 {[%clk 0:01:05]}  a4 {[%clk 0:00:35]} 36. bxa4 {[%clk 0:01:01]}  Qxa4 {[%clk 0:00:36]} 37. Qb1 {[%clk 0:01:01]}  Qc6 {[%clk 0:00:33]} 38. e4 {[%clk 0:00:51]}  fxe4 {[%clk 0:00:30]} 39. Be3 {[%clk 0:00:51]}  c4 {[%clk 0:00:21]} 40. Qf1 {[%clk 0:00:21]}  c3 {[%clk 0:00:21]} 41. dxc3 {[%clk 0:00:16]}  Bxc3 {[%clk 0:00:21]} 42. Bg5 {[%clk 0:00:04]}  Bd4 {[%clk 0:00:21]} 43. Rxe4 {[%clk 0:00:02]}  Qxe4 {[%clk 0:00:20]} 0-1


[Site "https://www.chess.com"]